[Event "*** Titled Tuesday Blitz"]
[Site "Chess.com"]
[Date "2021.03.09"]
[Round "8"]
[White "guillembaches"]
[Black "elohunter1999"]
[Result "0-1"]
[WhiteElo "2461"]
[BlackElo "2626"]
[TimeControl "180+1"]
[EndTime "11:28:49 PST"]
[Termination "elohunter1999 won on time"]

1. e4 {[%clk 0:03:00.9]} 1... c6 {[%clk 0:02:58.6]} 2. d4 {[%clk 0:03:00.6]}
2... d5 {[%clk 0:02:59.5]} 3. exd5 {[%clk 0:03:01.2]} 3... cxd5 {[%clk
0:02:59.7]} 4. Bd3 {[%clk 0:03:01.8]} 4... Nc6 {[%clk 0:02:59.7]} 5. c3 {[%clk
0:03:02.4]} 5... Qc7 {[%clk 0:03:00.1]} 6. Nf3 {[%clk 0:02:58.2]} 6... Bg4
{[%clk 0:02:59.6]} 7. O-O {[%clk 0:02:55.6]} 7... e6 {[%clk 0:02:59.8]} 8. h3
{[%clk 0:02:55.8]} 8... Bh5 {[%clk 0:02:59.8]} 9. Re1 {[%clk 0:02:56.1]} 9...
Bd6 {[%clk 0:02:59.6]} 10. Nbd2 {[%clk 0:02:54.7]} 10... Nge7 {[%clk 0:02:59.5]}
11. Nf1 {[%clk 0:02:54.1]} 11... h6 {[%clk 0:02:57.3]} 12. Be2 {[%clk
0:02:46.9]} 12... O-O-O {[%clk 0:02:57]} 13. b4 {[%clk 0:02:38.2]} 13... Kb8
{[%clk 0:02:54.5]} 14. a4 {[%clk 0:02:36.4]} 14... g5 {[%clk 0:02:54.4]} 15.
N3d2 {[%clk 0:02:35.8]} 15... Bxe2 {[%clk 0:02:53.4]} 16. Qxe2 {[%clk 0:02:33]}
16... h5 {[%clk 0:02:53]} 17. Nb3 {[%clk 0:02:19.2]} 17... Nf5 {[%clk
0:02:50.4]} 18. Bxg5 {[%clk 0:02:02.6]} 18... Rdg8 {[%clk 0:02:49.4]} 19. b5
{[%clk 0:01:54]} 19... Rxg5 {[%clk 0:02:43.7]} 20. bxc6 {[%clk 0:01:53.9]} 20...
Qxc6 {[%clk 0:02:43.8]} 21. Na5 {[%clk 0:01:43.9]} 21... Qc7 {[%clk 0:02:39.9]}
22. Nxb7 {[%clk 0:01:05.9]} 22... Kxb7 {[%clk 0:02:31.9]} 23. Rab1+ {[%clk
0:01:03.7]} 23... Ka8 {[%clk 0:02:29.8]} 24. Rb5 {[%clk 0:00:51.1]} 24... Rhg8
{[%clk 0:02:29.1]} 0-1

[Event "*** Titled Tuesday Blitz"]
[Site "Chess.com"]
[Date "2021.03.09"]
[Round "8"]
[White "lucachess49"]
[Black "Treacherous_horse64"]
[Result "1-0"]
[WhiteElo "2402"]
[BlackElo "2509"]
[TimeControl "180+1"]
[EndTime "11:28:52 PST"]
[Termination "lucachess49 won by resignation"]

1. d4 {[%clk 0:03:00.9]} 1... Nf6 {[%clk 0:03:00.2]} 2. c4 {[%clk 0:02:59.6]}
2... g6 {[%clk 0:03:00.4]} 3. f3 {[%clk 0:02:58.9]} 3... Bg7 {[%clk 0:02:59.6]}
4. e4 {[%clk 0:02:58.5]} 4... d6 {[%clk 0:03:00.1]} 5. Nc3 {[%clk 0:02:58.6]}
5... O-O {[%clk 0:03:00.6]} 6. Be3 {[%clk 0:02:58.7]} 6... Nc6 {[%clk 0:03:01]}
7. Qd2 {[%clk 0:02:58.7]} 7... a6 {[%clk 0:03:00.8]} 8. Nge2 {[%clk 0:02:59]}
8... e5 {[%clk 0:02:46.1]} 9. d5 {[%clk 0:02:54.6]} 9... Nd4 {[%clk 0:02:45.9]}
10. Nxd4 {[%clk 0:02:53.4]} 10... exd4 {[%clk 0:02:46.8]} 11. Bxd4 {[%clk
0:02:53.5]} 11... c5 {[%clk 0:02:46.2]} 12. dxc6 {[%clk 0:02:43.6]} 12... bxc6
{[%clk 0:02:47.1]} 13. Be2 {[%clk 0:02:43.5]} 13... d5 {[%clk 0:02:45.9]} 14.
cxd5 {[%clk 0:02:39.2]} 14... cxd5 {[%clk 0:02:45.8]} 15. Nxd5 {[%clk 0:02:33]}
15... Nxd5 {[%clk 0:02:22.8]} 16. Bxg7 {[%clk 0:02:32.3]} 16... Kxg7 {[%clk
0:02:23]} 17. exd5 {[%clk 0:02:32]} 17... Bb7 {[%clk 0:02:21.9]} 18. Rd1 {[%clk
0:02:30.9]} 18... Qb6 {[%clk 0:02:19.3]} 19. Qd4+ {[%clk 0:02:27.6]} 19... Qxd4
{[%clk 0:02:19.3]} 20. Rxd4 {[%clk 0:02:28.5]} 20... Rad8 {[%clk 0:02:17.6]} 21.
Bc4 {[%clk 0:02:27.4]} 21... Rfe8+ {[%clk 0:02:11.7]} 22. Kf2 {[%clk 0:02:21.4]}
22... Re5 {[%clk 0:02:11.3]} 23. Rhd1 {[%clk 0:02:20.2]} 23... f5 {[%clk
0:02:10.4]} 24. Bb3 {[%clk 0:02:18.6]} 24... Kf6 {[%clk 0:02:10.2]} 25. R1d2
{[%clk 0:02:11.8]} 25... Re7 {[%clk 0:02:09.6]} 26. Rb4 {[%clk 0:02:03.5]} 26...
Red7 {[%clk 0:02:09.2]} 27. Rb6+ {[%clk 0:02:01.8]} 27... Kg7 {[%clk 0:02:08.1]}
28. d6 {[%clk 0:01:55.7]} 28... Kf6 {[%clk 0:02:07.7]} 29. Re2 {[%clk
0:01:44.3]} 29... Bc8 {[%clk 0:01:58.7]} 30. Re6+ {[%clk 0:01:04.9]} 30... Kg7
{[%clk 0:01:57.6]} 31. Ba4 {[%clk 0:01:01.7]} 31... Ra7 {[%clk 0:01:53]} 32.
Re7+ {[%clk 0:01:00.5]} 1-0

[Event "*** Titled Tuesday Blitz"]
[Site "Chess.com"]
[Date "2021.03.09"]
[Round "8"]
[White "Alexandr_Kholin"]
[Black "SirStrateg"]
[Result "0-1"]
[WhiteElo "2468"]
[BlackElo "2608"]
[TimeControl "180+1"]
[EndTime "11:28:57 PST"]
[Termination "SirStrateg won by resignation"]

1. d4 {[%clk 0:03:00.9]} 1... Nf6 {[%clk 0:02:59.8]} 2. c4 {[%clk 0:03:00.4]}
2... Nc6 {[%clk 0:03:00.3]} 3. d5 {[%clk 0:03:00]} 3... Ne5 {[%clk 0:03:00.3]}
4. e3 {[%clk 0:02:53]} 4... e6 {[%clk 0:03:00.5]} 5. Nc3 {[%clk 0:02:46.9]} 5...
Bb4 {[%clk 0:02:59.9]} 6. Bd2 {[%clk 0:02:41.9]} 6... O-O {[%clk 0:02:52.3]} 7.
a3 {[%clk 0:02:39.4]} 7... Bxc3 {[%clk 0:02:49.2]} 8. Bxc3 {[%clk 0:02:38.8]}
8... Ng6 {[%clk 0:02:49.1]} 9. Nf3 {[%clk 0:02:38.5]} 9... d6 {[%clk 0:02:48.4]}
10. h4 {[%clk 0:02:36.2]} 10... Ne4 {[%clk 0:02:38.5]} 11. Rc1 {[%clk
0:02:12.8]} 11... e5 {[%clk 0:02:34.3]} 12. h5 {[%clk 0:02:11.3]} 12... Nh8
{[%clk 0:02:34.3]} 13. Be2 {[%clk 0:01:59.6]} 13... f5 {[%clk 0:02:30.8]} 14. h6
{[%clk 0:01:22.4]} 14... g6 {[%clk 0:02:30.8]} 15. Nd2 {[%clk 0:01:20]} 15...
Nxc3 {[%clk 0:02:30.7]} 16. Rxc3 {[%clk 0:01:20.8]} 16... Nf7 {[%clk 0:02:22.2]}
17. e4 {[%clk 0:01:21.2]} 17... f4 {[%clk 0:02:19.5]} 18. c5 {[%clk 0:01:19.5]}
18... Qg5 {[%clk 0:02:09.6]} 19. Nf3 {[%clk 0:01:17.1]} 19... Qxg2 {[%clk
0:02:02.7]} 20. Rh2 {[%clk 0:01:13.8]} 20... Qg4 {[%clk 0:02:02.4]} 21. cxd6
{[%clk 0:01:13.3]} 21... cxd6 {[%clk 0:02:02.2]} 22. Rc7 {[%clk 0:01:12.7]}
22... Ng5 {[%clk 0:01:50]} 23. Rg7+ {[%clk 0:01:10.1]} 23... Kh8 {[%clk
0:01:49.9]} 24. Kf1 {[%clk 0:01:09.1]} 24... Nxf3 {[%clk 0:01:40.1]} 25. Bxf3
{[%clk 0:01:10]} 25... Qg5 {[%clk 0:01:40.3]} 26. Qc1 {[%clk 0:01:10.2]} 26...
Qd8 {[%clk 0:01:31.2]} 27. Qc5 {[%clk 0:01:06.3]} 27... dxc5 {[%clk 0:01:27.4]}
0-1

[Event "*** Titled Tuesday Blitz"]
[Site "Chess.com"]
[Date "2021.03.09"]
[Round "8"]
[White "Chesswizard_2007"]
[Black "BigAl"]
[Result "0-1"]
[WhiteElo "2670"]
[BlackElo "2516"]
[TimeControl "180+1"]
[EndTime "11:29:05 PST"]
[Termination "BigAl won by resignation"]

1. d4 {[%clk 0:02:59.2]} 1... g6 {[%clk 0:02:59.7]} 2. Bg5 {[%clk 0:02:53.8]}
2... d6 {[%clk 0:02:58.5]} 3. Nc3 {[%clk 0:02:52.9]} 3... Bg7 {[%clk 0:02:58.4]}
4. h4 {[%clk 0:02:51.6]} 4... h5 {[%clk 0:02:55.3]} 5. Qd2 {[%clk 0:02:50.4]}
5... a6 {[%clk 0:02:55.7]} 6. e4 {[%clk 0:02:49.9]} 6... b5 {[%clk 0:02:55.2]}
7. Nf3 {[%clk 0:02:47.8]} 7... Nd7 {[%clk 0:02:54.7]} 8. Bd3 {[%clk 0:02:47.4]}
8... Bb7 {[%clk 0:02:53.6]} 9. Qe3 {[%clk 0:02:45.7]} 9... c5 {[%clk 0:02:50.2]}
10. O-O-O {[%clk 0:02:38.2]} 10... cxd4 {[%clk 0:02:39.9]} 11. Nxd4 {[%clk
0:02:37.2]} 11... Ngf6 {[%clk 0:02:40.3]} 12. f3 {[%clk 0:02:34.8]} 12... Rc8
{[%clk 0:02:40]} 13. Nce2 {[%clk 0:02:28.9]} 13... Qa5 {[%clk 0:02:22]} 14. Kb1
{[%clk 0:02:24.3]} 14... Ne5 {[%clk 0:02:20.5]} 15. Nb3 {[%clk 0:02:20.8]} 15...
Qc7 {[%clk 0:02:19.3]} 16. c3 {[%clk 0:01:56.2]} 16... Nc4 {[%clk 0:01:56.9]}
17. Qc1 {[%clk 0:01:53]} 17... Ba8 {[%clk 0:01:51.7]} 18. Nf4 {[%clk 0:01:40.8]}
18... a5 {[%clk 0:01:36]} 19. Nd4 {[%clk 0:01:34.5]} 19... Qb6 {[%clk
0:01:33.1]} 20. Rhe1 {[%clk 0:01:13.1]} 20... O-O {[%clk 0:01:25.4]} 21. Nc2
{[%clk 0:01:03.5]} 21... b4 {[%clk 0:01:19.2]} 22. b3 {[%clk 0:01:03.4]} 22...
Na3+ {[%clk 0:01:15.2]} 23. Qxa3 {[%clk 0:01:03.2]} 23... bxa3 {[%clk
0:01:15.8]} 0-1

[Event "*** Titled Tuesday Blitz"]
[Site "Chess.com"]
[Date "2021.03.09"]
[Round "8"]
[White "francyIM"]
[Black "KazakhFighter04"]
[Result "1-0"]
[WhiteElo "2610"]
[BlackElo "2726"]
[TimeControl "180+1"]
[EndTime "11:29:14 PST"]
[Termination "francyIM won by resignation"]

1. d4 {[%clk 0:03:00.9]} 1... Nf6 {[%clk 0:02:57.7]} 2. Nc3 {[%clk 0:03:01]}
2... d5 {[%clk 0:02:58]} 3. Bf4 {[%clk 0:03:00.5]} 3... a6 {[%clk 0:02:58.6]} 4.
e3 {[%clk 0:03:00.6]} 4... c5 {[%clk 0:02:59.1]} 5. dxc5 {[%clk 0:02:57.6]} 5...
Nc6 {[%clk 0:02:58.1]} 6. Nf3 {[%clk 0:02:57.4]} 6... Bg4 {[%clk 0:02:58.4]} 7.
Be2 {[%clk 0:02:53.4]} 7... e6 {[%clk 0:02:54.9]} 8. Na4 {[%clk 0:02:48.5]} 8...
Bxc5 {[%clk 0:02:53.9]} 9. Nxc5 {[%clk 0:02:47.7]} 9... Qa5+ {[%clk 0:02:53.4]}
10. c3 {[%clk 0:02:47.7]} 10... Qxc5 {[%clk 0:02:53]} 11. O-O {[%clk 0:02:47.8]}
11... O-O {[%clk 0:02:52.9]} 12. h3 {[%clk 0:02:42]} 12... Bh5 {[%clk
0:02:52.7]} 13. Rc1 {[%clk 0:02:40.2]} 13... Rfd8 {[%clk 0:02:50.8]} 14. Ne5
{[%clk 0:02:36.5]} 14... Bxe2 {[%clk 0:02:50.2]} 15. Qxe2 {[%clk 0:02:37.4]}
15... h6 {[%clk 0:02:49.1]} 16. Rfd1 {[%clk 0:02:36.8]} 16... Rac8 {[%clk
0:02:48.4]} 17. Bh2 {[%clk 0:02:28.8]} 17... Nxe5 {[%clk 0:02:45.6]} 18. Bxe5
{[%clk 0:02:29.7]} 18... Nd7 {[%clk 0:02:46.5]} 19. Bd4 {[%clk 0:02:29.5]} 19...
Qc4 {[%clk 0:02:45.8]} 20. Qxc4 {[%clk 0:02:29]} 20... Rxc4 {[%clk 0:02:46.7]}
21. e4 {[%clk 0:02:29.3]} 21... Nb8 {[%clk 0:02:36.8]} 22. exd5 {[%clk
0:02:06.3]} 22... Rxd5 {[%clk 0:02:35.1]} 23. Be3 {[%clk 0:02:06.2]} 23... Rxd1+
{[%clk 0:02:35]} 24. Rxd1 {[%clk 0:02:07.1]} 24... Nc6 {[%clk 0:02:35.3]} 25.
Rd7 {[%clk 0:02:06.1]} 25... b5 {[%clk 0:02:32.8]} 26. Rb7 {[%clk 0:02:02]}
26... b4 {[%clk 0:02:26.1]} 27. Bd2 {[%clk 0:01:57.8]} 27... bxc3 {[%clk
0:02:21.8]} 28. Bxc3 {[%clk 0:01:56.5]} 28... Nd4 {[%clk 0:02:22.4]} 29. Kf1
{[%clk 0:01:50.9]} 29... Nb5 {[%clk 0:02:22]} 30. Be1 {[%clk 0:01:47.2]} 30...
Rc2 {[%clk 0:02:21.6]} 31. a4 {[%clk 0:01:46.7]} 31... Nd6 {[%clk 0:02:21.8]}
32. Rb8+ {[%clk 0:01:46.2]} 32... Kh7 {[%clk 0:02:21.1]} 33. Rb4 {[%clk
0:01:35.6]} 33... Nc4 {[%clk 0:02:13.8]} 34. Bc3 {[%clk 0:01:33.7]} 34... Nd6
{[%clk 0:02:10.4]} 35. g4 {[%clk 0:01:30.5]} 35... f5 {[%clk 0:02:09.2]} 36. f3
{[%clk 0:01:25.2]} 36... a5 {[%clk 0:01:49.2]} 37. Rd4 {[%clk 0:01:24.1]} 37...
Nf7 {[%clk 0:01:47.8]} 38. Rd7 {[%clk 0:01:22.7]} 38... Kg6 {[%clk 0:01:48.3]}
39. h4 {[%clk 0:01:23]} 39... fxg4 {[%clk 0:01:43.1]} 40. fxg4 {[%clk
0:01:22.9]} 40... e5 {[%clk 0:01:44]} 41. Ra7 {[%clk 0:01:17.3]} 1-0

[Event "*** Titled Tuesday Blitz"]
[Site "Chess.com"]
[Date "2021.03.09"]
[Round "8"]
[White "Skat2704"]
[Black "Blitzstream"]
[Result "1-0"]
[WhiteElo "2607"]
[BlackElo "2735"]
[TimeControl "180+1"]
[EndTime "11:29:25 PST"]
[Termination "Skat2704 won by resignation"]

1. d4 {[%clk 0:02:40.2]} 1... d5 {[%clk 0:02:59.3]} 2. c4 {[%clk 0:02:39.6]}
2... c6 {[%clk 0:02:59.4]} 3. Nf3 {[%clk 0:02:39.6]} 3... Nf6 {[%clk 0:03:00]}
4. Nc3 {[%clk 0:02:40]} 4... Bf5 {[%clk 0:03:00.6]} 5. cxd5 {[%clk 0:02:37.8]}
5... Nxd5 {[%clk 0:03:01.5]} 6. e3 {[%clk 0:02:35.1]} 6... e6 {[%clk 0:03:01.8]}
7. Bc4 {[%clk 0:02:33.3]} 7... Be7 {[%clk 0:03:01.6]} 8. O-O {[%clk 0:02:33.3]}
8... O-O {[%clk 0:03:01.8]} 9. Re1 {[%clk 0:02:33.6]} 9... Bg6 {[%clk
0:02:59.5]} 10. e4 {[%clk 0:02:31.1]} 10... Nxc3 {[%clk 0:02:59]} 11. bxc3
{[%clk 0:02:31.5]} 11... Nd7 {[%clk 0:02:59.2]} 12. a4 {[%clk 0:02:23.2]} 12...
c5 {[%clk 0:02:56.6]} 13. a5 {[%clk 0:02:20.1]} 13... Rc8 {[%clk 0:02:52.6]} 14.
Qb3 {[%clk 0:02:16.1]} 14... cxd4 {[%clk 0:02:45.7]} 15. cxd4 {[%clk 0:02:15.9]}
15... b6 {[%clk 0:02:44.8]} 16. Ba6 {[%clk 0:02:12.9]} 16... Rb8 {[%clk
0:02:40.4]} 17. Bf4 {[%clk 0:02:08.3]} 17... e5 {[%clk 0:02:18.2]} 18. Nxe5
{[%clk 0:02:01.2]} 18... bxa5 {[%clk 0:02:18.4]} 19. Qa4 {[%clk 0:01:50.4]}
19... Rb4 {[%clk 0:01:54.1]} 20. Qxd7 {[%clk 0:01:47.2]} 20... Rxd4 {[%clk
0:01:36.4]} 21. Qxd8 {[%clk 0:01:44.8]} 21... Bxd8 {[%clk 0:01:37.3]} 22. Bb7
{[%clk 0:01:35.6]} 22... Bb6 {[%clk 0:01:33.5]} 23. Be3 {[%clk 0:01:25.9]} 23...
Rb4 {[%clk 0:01:30]} 24. Bxb6 {[%clk 0:01:25.5]} 24... axb6 {[%clk 0:01:30.2]}
25. Bd5 {[%clk 0:01:25.8]} 25... Rc8 {[%clk 0:01:13.4]} 26. Nxg6 {[%clk
0:01:24.1]} 26... hxg6 {[%clk 0:01:13.2]} 27. h3 {[%clk 0:01:20.3]} 27... a4
{[%clk 0:01:12.9]} 28. Reb1 {[%clk 0:01:16.9]} 28... Rxb1+ {[%clk 0:01:03.3]}
29. Rxb1 {[%clk 0:01:15.7]} 29... Rc1+ {[%clk 0:00:59.2]} 30. Rxc1 {[%clk
0:01:15.1]} 1-0

[Event "*** Titled Tuesday Blitz"]
[Site "Chess.com"]
[Date "2021.03.09"]
[Round "8"]
[White "Beca95"]
[Black "Rakesh"]
[Result "1-0"]
[WhiteElo "2867"]
[BlackElo "2519"]
[TimeControl "180+1"]
[EndTime "11:29:28 PST"]
[Termination "Beca95 won by resignation"]

1. d4 {[%clk 0:03:00.9]} 1... Nf6 {[%clk 0:02:59.8]} 2. c4 {[%clk 0:03:01]} 2...
e5 {[%clk 0:03:00.2]} 3. dxe5 {[%clk 0:03:00.3]} 3... Ng4 {[%clk 0:03:00.7]} 4.
e4 {[%clk 0:03:00.7]} 4... Nxe5 {[%clk 0:02:59.8]} 5. f4 {[%clk 0:03:00.4]} 5...
Nec6 {[%clk 0:03:00.2]} 6. Be3 {[%clk 0:02:59.9]} 6... Bb4+ {[%clk 0:03:00.2]}
7. Nd2 {[%clk 0:02:59.6]} 7... O-O {[%clk 0:03:01.1]} 8. a3 {[%clk 0:02:58.9]}
8... Bxd2+ {[%clk 0:02:59.6]} 9. Qxd2 {[%clk 0:02:59.8]} 9... Re8 {[%clk
0:03:00.5]} 10. Bd3 {[%clk 0:03:00]} 10... d6 {[%clk 0:02:58.9]} 11. Ne2 {[%clk
0:02:59.6]} 11... Nd7 {[%clk 0:02:58.6]} 12. Nc3 {[%clk 0:02:57.5]} 12... Nc5
{[%clk 0:02:56.9]} 13. Bc2 {[%clk 0:02:57.3]} 13... Bg4 {[%clk 0:02:52.5]} 14.
h3 {[%clk 0:02:55.4]} 14... Qh4+ {[%clk 0:02:48]} 15. Bf2 {[%clk 0:02:29.6]}
15... Qh5 {[%clk 0:02:47.1]} 16. O-O {[%clk 0:02:29.2]} 16... Bxh3 {[%clk
0:02:45]} 17. gxh3 {[%clk 0:02:26.7]} 17... Qxh3 {[%clk 0:02:45.1]} 18. Qe3
{[%clk 0:02:24.9]} 18... Qh5 {[%clk 0:02:40.4]} 19. Kg2 {[%clk 0:02:20]} 19...
Re6 {[%clk 0:02:35.5]} 20. f5 {[%clk 0:02:19.6]} 20... Rh6 {[%clk 0:02:05.8]}
21. Rh1 {[%clk 0:02:19.6]} 21... Qg4+ {[%clk 0:02:05.7]} 22. Qg3 {[%clk
0:02:19.8]} 22... Qxg3+ {[%clk 0:02:01.9]} 23. Kxg3 {[%clk 0:02:20.1]} 23...
Rxh1 {[%clk 0:02:00.6]} 24. Rxh1 {[%clk 0:02:21]} 24... a5 {[%clk 0:01:56.3]}
25. Nd5 {[%clk 0:02:16.2]} 25... Re8 {[%clk 0:01:51.5]} 26. Kf4 {[%clk 0:02:13]}
26... Ne5 {[%clk 0:01:41]} 27. Bxc5 {[%clk 0:02:07]} 27... dxc5 {[%clk
0:01:41.2]} 28. Nxc7 {[%clk 0:02:06.4]} 28... g5+ {[%clk 0:01:41.6]} 29. Kxg5
{[%clk 0:02:03.7]} 29... Rd8 {[%clk 0:01:32.3]} 30. Nd5 {[%clk 0:02:01.6]} 30...
Nxc4 {[%clk 0:01:32.3]} 31. f6 {[%clk 0:01:58.2]} 31... Ne5 {[%clk 0:01:18.8]}
32. Kf5 {[%clk 0:01:57.6]} 32... Nf3 {[%clk 0:01:17.9]} 33. Bd1 {[%clk 0:01:48]}
33... Nd4+ {[%clk 0:01:15.2]} 34. Kf4 {[%clk 0:01:47.6]} 34... Ne6+ {[%clk
0:01:10.1]} 35. Ke5 {[%clk 0:01:47.1]} 35... Nd4 {[%clk 0:01:08.5]} 36. Ne7+
{[%clk 0:01:46]} 36... Kh8 {[%clk 0:01:08.7]} 37. Bh5 {[%clk 0:01:43.8]} 37...
Rf8 {[%clk 0:00:54.5]} 38. Rg1 {[%clk 0:01:43.5]} 38... h6 {[%clk 0:00:50.6]}
39. Rg7 {[%clk 0:01:42]} 1-0

[Event "*** Titled Tuesday Blitz"]
[Site "Chess.com"]
[Date "2021.03.09"]
[Round "8"]
[White "GM_Huschenbeth"]
[Black "redblizzard"]
[Result "1-0"]
[WhiteElo "2629"]
[BlackElo "2475"]
[TimeControl "180+1"]
[EndTime "11:29:29 PST"]
[Termination "GM_Huschenbeth won by resignation"]

1. e4 {[%clk 0:03:00.9]} 1... e5 {[%clk 0:02:59.6]} 2. Nf3 {[%clk 0:03:01]} 2...
Nc6 {[%clk 0:02:59.7]} 3. Bc4 {[%clk 0:03:01.7]} 3... Nf6 {[%clk 0:02:59.9]} 4.
d4 {[%clk 0:03:01.5]} 4... exd4 {[%clk 0:02:59.5]} 5. e5 {[%clk 0:03:01.9]} 5...
d5 {[%clk 0:02:57.9]} 6. Bb5 {[%clk 0:03:01.7]} 6... Nd7 {[%clk 0:02:57.7]} 7.
Bxc6 {[%clk 0:03:00.8]} 7... bxc6 {[%clk 0:02:58.2]} 8. Nxd4 {[%clk 0:03:01.7]}
8... Nb8 {[%clk 0:02:58]} 9. O-O {[%clk 0:02:59.8]} 9... Be7 {[%clk 0:02:57]}
10. f4 {[%clk 0:02:58.3]} 10... c5 {[%clk 0:02:55.9]} 11. Nb3 {[%clk 0:02:55]}
11... Nc6 {[%clk 0:02:43.3]} 12. Nc3 {[%clk 0:02:50.6]} 12... d4 {[%clk
0:02:37.5]} 13. Ne4 {[%clk 0:02:46.1]} 13... Qd5 {[%clk 0:02:37.6]} 14. Qf3
{[%clk 0:02:40.2]} 14... Be6 {[%clk 0:01:49.8]} 15. Nexc5 {[%clk 0:02:37.7]}
15... Bxc5 {[%clk 0:01:36.9]} 16. Qxd5 {[%clk 0:02:37.2]} 16... Bxd5 {[%clk
0:01:37.8]} 17. Nxc5 {[%clk 0:02:37.2]} 17... Nb4 {[%clk 0:01:32.2]} 18. Rf2
{[%clk 0:02:26.7]} 18... O-O {[%clk 0:01:25.7]} 19. a3 {[%clk 0:02:17.9]} 19...
Nc6 {[%clk 0:01:25.5]} 20. Bd2 {[%clk 0:02:15.2]} 20... f5 {[%clk 0:01:21.3]}
21. exf6 {[%clk 0:02:10.7]} 21... Rxf6 {[%clk 0:01:21.1]} 22. Re1 {[%clk
0:02:09.8]} 22... Kf7 {[%clk 0:01:17]} 23. f5 {[%clk 0:01:54.4]} 23... h6 {[%clk
0:01:15.8]} 24. g4 {[%clk 0:01:50.7]} 24... Re8 {[%clk 0:01:13]} 25. Rxe8 {[%clk
0:01:47]} 25... Kxe8 {[%clk 0:01:13.3]} 26. Bf4 {[%clk 0:01:46.9]} 26... Kd8
{[%clk 0:01:08.3]} 27. g5 {[%clk 0:01:39.8]} 27... Rf7 {[%clk 0:00:59.6]} 28.
gxh6 {[%clk 0:01:32.6]} 28... gxh6 {[%clk 0:01:00.5]} 29. Bxh6 {[%clk
0:01:30.6]} 29... Ne7 {[%clk 0:00:59.6]} 30. Bg5 {[%clk 0:01:28.3]} 30... Ke8
{[%clk 0:00:56.6]} 31. Re2 {[%clk 0:01:21]} 31... Kf8 {[%clk 0:00:57]} 32. Nd7+
{[%clk 0:01:20.7]} 32... Kg8 {[%clk 0:00:55.6]} 33. Rxe7 {[%clk 0:01:18.9]} 1-0

[Event "*** Titled Tuesday Blitz"]
[Site "Chess.com"]
[Date "2021.03.09"]
[Round "8"]
[White "AniJak"]
[Black "Mikasinski"]
[Result "0-1"]
[WhiteElo "2316"]
[BlackElo "2467"]
[TimeControl "180+1"]
[EndTime "11:29:30 PST"]
[Termination "Mikasinski won by resignation"]

1. e4 {[%clk 0:03:00.9]} 1... c5 {[%clk 0:02:59.2]} 2. Nf3 {[%clk 0:03:00.3]}
2... d6 {[%clk 0:02:59.7]} 3. d4 {[%clk 0:02:59.7]} 3... cxd4 {[%clk 0:03:00.6]}
4. Nxd4 {[%clk 0:03:00.2]} 4... Nf6 {[%clk 0:03:01.2]} 5. Nc3 {[%clk 0:03:00.9]}
5... g6 {[%clk 0:03:01.8]} 6. Bc4 {[%clk 0:02:56.7]} 6... Bg7 {[%clk 0:03:01.8]}
7. O-O {[%clk 0:02:56.1]} 7... O-O {[%clk 0:03:02.4]} 8. Re1 {[%clk 0:02:56.1]}
8... Nc6 {[%clk 0:03:02.9]} 9. Bb3 {[%clk 0:02:48.2]} 9... Nxd4 {[%clk
0:03:01.8]} 10. Qxd4 {[%clk 0:02:46.1]} 10... Be6 {[%clk 0:03:02.5]} 11. Bg5
{[%clk 0:02:36.2]} 11... Nd5 {[%clk 0:02:54.4]} 12. Qd2 {[%clk 0:02:16.8]} 12...
Nxc3 {[%clk 0:02:53.1]} 13. bxc3 {[%clk 0:02:17.7]} 13... Qc7 {[%clk 0:02:53.1]}
14. Re3 {[%clk 0:02:05.2]} 14... Rac8 {[%clk 0:02:48.4]} 15. Rd1 {[%clk
0:01:59.6]} 15... Bxc3 {[%clk 0:02:44.3]} 16. Qe2 {[%clk 0:01:56.5]} 16... Bg7
{[%clk 0:02:42.7]} 17. h3 {[%clk 0:01:42.4]} 17... Bxb3 {[%clk 0:02:40.1]} 18.
cxb3 {[%clk 0:01:42.7]} 18... e6 {[%clk 0:02:35.8]} 19. Red3 {[%clk 0:01:38.8]}
19... d5 {[%clk 0:02:12.6]} 20. exd5 {[%clk 0:01:37.1]} 20... exd5 {[%clk
0:02:12.8]} 21. Rxd5 {[%clk 0:01:36.7]} 21... Rfe8 {[%clk 0:02:13.1]} 22. Qf3
{[%clk 0:01:33.4]} 22... Qc6 {[%clk 0:02:01.1]} 23. Qf4 {[%clk 0:01:07.5]} 23...
Re1+ {[%clk 0:01:56.9]} 24. Rxe1 {[%clk 0:01:00.1]} 24... Qxd5 {[%clk
0:01:56.6]} 25. Re7 {[%clk 0:00:59.3]} 25... Bf8 {[%clk 0:01:53.4]} 26. Re1
{[%clk 0:00:55]} 26... Bd6 {[%clk 0:01:45.6]} 27. Qe4 {[%clk 0:00:48.9]} 27...
Qxg5 {[%clk 0:01:44.6]} 28. Qxb7 {[%clk 0:00:40.7]} 28... Rc7 {[%clk 0:01:42.6]}
29. Qa8+ {[%clk 0:00:34.3]} 29... Kg7 {[%clk 0:01:41.7]} 30. Qe8 {[%clk
0:00:30.1]} 30... Rc1 {[%clk 0:01:40.8]} 0-1

[Event "*** Titled Tuesday Blitz"]
[Site "Chess.com"]
[Date "2021.03.09"]
[Round "8"]
[White "LileKoridze"]
[Black "halldorgretar"]
[Result "1-0"]
[WhiteElo "2423"]
[BlackElo "2236"]
[TimeControl "180+1"]
[EndTime "11:29:43 PST"]
[Termination "LileKoridze won by resignation"]

1. d4 {[%clk 0:03:00.9]} 1... Nf6 {[%clk 0:02:56]} 2. c4 {[%clk 0:02:59.5]} 2...
g6 {[%clk 0:02:55.3]} 3. Nc3 {[%clk 0:02:57.2]} 3... d5 {[%clk 0:02:55.2]} 4.
Nf3 {[%clk 0:02:57.1]} 4... Bg7 {[%clk 0:02:54.7]} 5. Bg5 {[%clk 0:02:57.7]}
5... Ne4 {[%clk 0:02:49.7]} 6. cxd5 {[%clk 0:02:57.7]} 6... Nxg5 {[%clk
0:02:44]} 7. Nxg5 {[%clk 0:02:58.6]} 7... e6 {[%clk 0:02:43]} 8. Qd2 {[%clk
0:02:58.1]} 8... exd5 {[%clk 0:02:41.7]} 9. Qe3+ {[%clk 0:02:58.1]} 9... Kf8
{[%clk 0:02:35.5]} 10. Qf4 {[%clk 0:02:54.6]} 10... Bf6 {[%clk 0:01:54]} 11. h4
{[%clk 0:02:34.3]} 11... Kg7 {[%clk 0:01:52.9]} 12. e4 {[%clk 0:02:31.2]} 12...
dxe4 {[%clk 0:01:40.9]} 13. O-O-O {[%clk 0:02:29.7]} 13... Qd6 {[%clk
0:00:45.7]} 14. Qxd6 {[%clk 0:02:15.8]} 14... cxd6 {[%clk 0:00:45.5]} 15. Ngxe4
{[%clk 0:02:14.5]} 15... Be7 {[%clk 0:00:44.8]} 16. Nb5 {[%clk 0:02:01.8]} 16...
Bg4 {[%clk 0:00:42.4]} 17. f3 {[%clk 0:02:01.3]} 17... Rc8+ {[%clk 0:00:41.5]}
18. Kb1 {[%clk 0:01:59.9]} 18... Bf5 {[%clk 0:00:41.3]} 19. Bd3 {[%clk
0:01:57.8]} 19... Nc6 {[%clk 0:00:28.5]} 20. Nbxd6 {[%clk 0:01:55.1]} 20... Bxd6
{[%clk 0:00:26.4]} 21. Nxd6 {[%clk 0:01:55.1]} 21... Bxd3+ {[%clk 0:00:26.7]}
22. Rxd3 {[%clk 0:01:54.8]} 22... Rc7 {[%clk 0:00:26.6]} 23. Rc1 {[%clk
0:01:51.3]} 23... Rd7 {[%clk 0:00:15.8]} 24. Nxb7 {[%clk 0:01:51.2]} 24... Nxd4
{[%clk 0:00:14.5]} 25. Nc5 {[%clk 0:01:49.9]} 25... Rd6 {[%clk 0:00:12.7]} 26.
Rcd1 {[%clk 0:01:48.6]} 26... Rad8 {[%clk 0:00:09.5]} 27. Nb7 {[%clk 0:01:48.2]}
27... Nf5 {[%clk 0:00:06.5]} 28. Nxd8 {[%clk 0:01:46.8]} 1-0